[Event "26th Hit Open-A 2022"]
[Site "Nova Gorica"]
[Date "2022.09.19"]
[Round "6.22"]
[White "Walker, Samuel A"]
[Black "Goroshkov, Maksym"]
[Result "0-1"]
[ECO "B38"]
[WhiteElo "2028"]
[BlackElo "2315"]
[Annotator "TA"]
[PlyCount "76"]
[EventDate "2022.09.16"]
[EventType "swiss"]
[EventCountry "SLO"]
[SourceTitle "playchess.com"]
[Source "ChessBase"]
[SourceQuality "1"]
[TimeControl "5400+30"]

{[%evp 23,76,35,43,42,39,37,36,33,43,27,98,91,126,92,130,89,94,88,91,97,85,0,0,0,0,0,0,-12,-13,-12,-8,-12,47,61,63,63,100,100,100,100,100,33,50,33,30,-302,-272,-283,-269,-642,-894,-29964,-29964,-29994,-859]} 1. Nf3 {[%emt 0:00:03]} Nf6 {[%emt 0:01:55]} 2. c4 {[%emt 0:00:08]} d6 {[%emt 0:00:24]} 3. d4 {[%emt 0:00:11]} g6 {[%emt 0:00:09]} 4. Nc3 {[%emt 0:00:06]} Bg7 {[%emt 0:00:12]} 5. e4 {[%emt 0:00:06]} O-O {[%emt 0:00:10]} 6. Be2 {[%emt 0:00:07]} c5 {[%emt 0:00:38]} 7. O-O {[%emt 0:00:38]} cxd4 {[%emt 0:00:09]} 8. Nxd4 {[%emt 0:00:08]} Nc6 {[%emt 0:00:19]} 9. Be3 {[%emt 0:00:30]} Bd7 {[%emt 0:04:23]} 10. Qd2 {[%emt 0:01:01]} Ng4 {[%emt 0:02:00]} 11. Bxg4 {[%emt 0:00:44]} Bxg4 {[%emt 0:00:08]} 12. f3 {[%emt 0:00:31]} Bd7 {[%emt 0:03:43] CPLX 2.9} 13. Rac1 {[%emt 0:08:04] CPLX 2.5 1 (Nc3-d5) (=1). B38: Sicilian: Maroczy Bind with 5...Bg7 and 7...0-0.} Rc8 {[%emt 0:08:16] CPLX 2.6} 14. b3 {[%emt 0:01:08] CPLX 2.5} Qa5 {[%emt 0:02:57] CPLX 2.6} 15. Rfd1 {[%emt 0:05:06] [#] BESTDEEP. White is slightly better.} f5 $146 {[%emt 0:03:03] CPLX 2.7 10 (Nc6xd4) (=3)} ({Predecessor:} 15... Qh5 16. Nd5 Rfe8 17. Nf4 Qe5 18. Nxc6 Bxc6 19. Bxa7 Ra8 20. Be3 Ra3 21. Nd3 Qh5 {0-1 (35) Mendez Fortes,E (2250)-Costachi,M (2463) Chess.com INT 2022}) 16. Nd5 {[%emt 0:01:40] CPLX 2.9 16 (e4xf5) (=4)} Qd8 {[%emt 0:04:55] RELBLUND 71 (Qa5xd2) (=16)} (16... Qxd2 $11 {keeps the balance.} 17. Rxd2 Kf7) 17. exf5 $16 {[%emt 0:03:00] CPLX 3.0} gxf5 {[%emt 0:02:29] RECAPT 35 (Bd7xf5) (=19)} 18. Kh1 {[%emt 0:09:28] CPLX 2.9 34 (Nd4-b5) (=9)} Kh8 {[%emt 0:02:36] CPLX 3.0 38 (Rf8-f7) (=22)} 19. Qe1 {[%emt 0:11:53] CPLX 2.9 41 (Nd4-b5) (=13)} Qe8 {[%emt 0:07:39] CPLX 2.9 5 (Bg7xd4) (=20)} 20. Qh4 $1 {[%emt 0:06:57] CPLX 2.9} e6 {[%emt 0:03:56] EASY} 21. Nc3 {[%emt 0:05:10] CPLX 3.8} Bf6 {[%emt 0:01:29] CPLX 3.5 0 (f5-f4) (=16)} 22. Bg5 {[%emt 0:06:50] MISSDEEP-Qh4-e1 85 (Qh4-e1) (=18)} ({Better is} 22. Qe1 $1 $16) 22... Bxd4 $11 {[%emt 0:01:16] EASY} 23. Rxd4 {[%emt 0:00:09] RECAPT} Nxd4 {[%emt 0:00:16] RECAPT} 24. Qxd4+ {[%emt 0:01:20] RECAPT} ({But not} 24. Bf6+ Kg8 25. Bxd4 e5 26. Bxa7 Bc6 $15) 24... e5 {[%emt 0:06:10] EASY} 25. Qxd6 {[%emt 0:00:30] CPLX 3.3 12 (Qd4-h4) (=15)} Rc6 {[%emt 0:00:16] CPLX 3.1} 26. Qd2 {[%emt 0:04:04] CPLX 3.5 0 (Qd6-d3) (=14)} Rg6 {[%emt 0:02:41] CPLX 3.0 4 (f5-f4) (=11)} 27. Nd5 {[%emt 0:01:13] aiming for Re1. CPLX 3.1 4 (Rc1-e1) (=13)} Bc6 {[%emt 0:02:52] RELBLUND 59 (f5-f4) (=14)} (27... f4 $11 28. Bh4 Rh6) 28. Re1 $1 $14 {[%emt 0:06:00][%cal Od2c3] Hoping for Qc3! DEEPSTRONG} Bxd5 {[%emt 0:13:38] CPLX 3.3} 29. cxd5 {[%emt 0:00:30][%cal Bc4d5,Bd5d6][%mdl 32] RECAPT} e4 {[%emt 0:00:48] CPLX 3.2 37 (Rf8-g8) (=14)} 30. d6 $1 {[%emt 0:11:21] DEEPSTRONG} Qd7 {[%emt 0:00:51] BESTDEEP} 31. Be7 {[%emt 0:01:36] EASY} ({Much weaker is} 31. fxe4 Rxd6 32. Qf2 Rd1 $17) 31... Rf7 {[%emt 0:00:19] CPLX 5.0 0 (Rf8-e8) (=13)} 32. Qc3+ {[%emt 0:03:05] CPLX 4.8 67 (f3xe4) (=13)} (32. fxe4 $16 {Threatens to win with Qc3+.} Rxe7 33. dxe7 $1 Qxd2 34. e8=Q+ Rg8 35. Qe5+ Rg7 36. Rg1) 32... Kg8 {[%emt 0:00:08] EASY} 33. fxe4 {[%emt 0:02:24] CPLX 4.2 17 (h2-h3) (=13)} (33. h3 $5 {[%cal Rf3e4]}) 33... fxe4 {[%emt 0:00:14] RECAPT} 34. Qd4 $2 {[%emt 0:05:24][%mdl 8192] [#] This costs White the game. RELBLUND 332 (Re1-c1) (=28)} (34. Rc1 $11) 34... Rxg2 $3 $19 {[%emt 0:02:38][%mdl 512] DEEPSTRONG=>BLUNDERREACT} 35. Qxe4 {[%emt 0:01:32] MISS-Kh1xg2 11 (Kh1xg2) (=27)} Rg6 {[%emt 0:00:32] ...Qh3 is the strong threat. CPLX 5.3 14 (Rg2-g4) (=11)} 36. a4 $2 {[%emt 0:02:45] MISS-Qe4-d5 373 (Qe4-d5) (=41)} (36. Qd5) 36... Qh3 {[%emt 0:02:04] ( -> ...Rf1+). CPLX 4.0=>BLUNDERREACT} 37. Qd5 {[%emt 0:01:46] [#] MISSDEEP-Qe4-e2 400 (Qe4-e2) (=56)} Kh8 $1 {[%emt 0:01:31][%cal Oh3f1] CPLX 5.6=>BLUNDERREACT} 38. Qe5+ {[%emt 0:01:50] RELBLUND 30 (Be7-f6) (=55)} (38. Bf6+ Rgxf6) 38... Rgg7 {[%emt 0:00:06] Weighted Error Value: White=0.60/Black=0.11 (very precise)} (38... Rfg7 $142 39. Bg5 Qf3+ 40. Kg1 Rxg5+ 41. Qg3 Rxg3+ 42. hxg3 Rxg3+ 43. Kh2 Qg2#) 0-1

[Event "26th Hit Open-A 2022"]
[Site "Nova Gorica"]
[Date "2022.09.19"]
[Round "6.23"]
[White "Kepplinger, Lukas"]
[Black "Guid, Matej"]
[Result "0-1"]
[ECO "D31"]
[WhiteElo "1994"]
[BlackElo "2292"]
[Annotator "TA"]
[PlyCount "100"]
[EventDate "2022.09.16"]
[EventType "swiss"]
[EventCountry "SLO"]
[SourceTitle "playchess.com"]
[Source "ChessBase"]
[SourceQuality "1"]
[TimeControl "5400+30"]

{[%evp 10,100,11,-16,-8,-8,-13,-28,-7,-30,-15,-21,-18,-100,-19,-33,-37,-27,-29,-25,-19,-55,-41,-46,-12,-9,0,0,7,0,0,-6,-2,-60,-68,-56,-29,-29,0,0,0,0,0,0,0,0,0,0,0,-10,-11,-25,-8,-8,-8,-8,-8,-82,-58,-58,-61,-79,-70,-70,-70,-70,-70,-70,-71,-71,-71,-71,-71,-73,-62,-62,-62,-74,-74,-74,-74,-73,-73,-73,-73,-77,-70,-74,-63,-76,-76,-29987,-29986]} 1. d4 {[%emt 0:00:04]} d5 {[%emt 0:00:27]} 2. c4 {[%emt 0:00:21]} e6 {[%emt 0:00:24]} 3. Nf3 {[%emt 0:00:20]} c6 {[%emt 0:00:07]} 4. Nc3 {[%emt 0:00:17]} dxc4 {[%emt 0:00:07]} 5. a4 {[%emt 0:01:40]} Bb4 {[%emt 0:00:05]} 6. Qc2 {[%emt 0:02:20]} b5 {[%emt 0:01:44] D31: Queen's Gambit Declined: Semi-Slav without ...Nf6 (+ Marshall Gambit and Noteboom) and Exchange Variation lines without ...Nf6.} 7. e3 {[%emt 0:01:22]} a5 {[%emt 0:01:58]} 8. Bd2 {[%emt 0:09:26]} Nf6 {[%emt 0:05:05] Black has an edge.} 9. axb5 {[%emt 0:22:43]} Bxc3 {[%emt 0:00:20]} 10. Qxc3 {[%emt 0:00:35]} (10. Bxc3 {with more complications.} cxb5 11. b3 Bb7 12. bxc4 b4 13. Bd2) 10... cxb5 {[%emt 0:28:41]} 11. Rxa5 {[%emt 0:13:06] [#]} (11. b3 $1 $11) 11... Rxa5 {[%emt 0:04:12]} (11... Nd5 $1 $17 {[%cal Rd5c3]} 12. Rxa8 (12. Qa3 b4 $17) 12... Nxc3 13. Rxb8 Qc7 14. Rxc8+ Qxc8 15. bxc3 Qa8) 12. Qxa5 $11 {[%emt 0:01:11]} Qxa5 {[%emt 0:00:05]} 13. Bxa5 {[%emt 0:00:07][%cal Ob2b3]} Nc6 {[%emt 0:00:05]} 14. Bd2 {[%emt 0:13:15][%cal Ob2b3] [#]} Ne4 $146 {[%emt 0:00:12]} ({Predecessor:} 14... Ba6 15. Be2 O-O 16. O-O Ne4 17. b3 c3 18. Ra1 cxd2 19. Rxa6 Nb4 20. Ra1 Rc8 {0-1 (30) Mont Reynaud,J-Pozarek,S (2180) Philadelphia 1994}) 15. Be2 {[%emt 0:00:15]} Bb7 {[%emt 0:00:57] And now ...Ke7 would win.} 16. O-O {[%emt 0:01:17]} g5 {[%emt 0:00:19] White must now prevent ...g4.} 17. Bc3 {[%emt 0:03:57][%cal Of3g5]} O-O {[%emt 0:11:47]} 18. Ra1 {[%emt 0:01:53]} Rd8 {[%emt 0:25:36]} 19. Be1 {[%emt 0:07:30]} f5 {[%emt 0:04:22]} 20. b3 {[%emt 0:02:17]} g4 {[%emt 0:00:51]} 21. bxc4 {[%emt 0:03:44]} (21. Nh4 $11 cxb3 22. Rb1) 21... gxf3 $15 {[%emt 0:01:57]} 22. gxf3 {[%emt 0:00:06]} Ng5 {[%emt 0:00:51]} 23. h4 {[%emt 0:01:11] [#]} Nxd4 $1 {[%emt 0:03:07]} 24. exd4 {[%emt 0:02:35]} Nxf3+ {[%emt 0:00:58]} 25. Bxf3 {[%emt 0:00:54]} Bxf3 $11 {[%emt 0:00:02][%mdl 4096] Endgame KRB-KRB} 26. Ra3 {[%emt 0:00:52]} Be2 {[%emt 0:02:10]} 27. cxb5 {[%emt 0:01:14]} Bxb5 {[%emt 0:01:45]} 28. Bc3 {[%emt 0:02:42]} Kf7 {[%emt 0:01:15]} 29. Ra7+ {[%emt 0:00:09]} Kg6 {[%emt 0:00:06]} 30. h5+ {[%emt 0:00:42]} Kh6 {[%emt 0:01:36]} 31. Bd2+ {[%emt 0:00:25]} Kxh5 {[%emt 0:00:05]} 32. Rxh7+ {[%emt 0:00:07]} Kg4 {[%emt 0:00:12]} 33. Bc3 {[%emt 0:01:57]} (33. Rg7+ $11 {keeps the balance.} Kf3 34. Rg3+ Ke2 35. Ba5) 33... Rg8 {[%emt 0:00:21] Hoping for ...Kf3+.} 34. d5 {[%emt 0:03:12]} Kf3+ {[%emt 0:01:46]} 35. Kh2 {[%emt 0:01:32]} Rg2+ {[%emt 0:00:27]} 36. Kh1 $1 {[%emt 0:00:49] Strongly threatening Rh3+.} Rxf2 {[%emt 0:01:34]} (36... exd5 37. Rh3+ Kxf2 38. Bd4+ Ke1 39. Kxg2 $11) 37. dxe6 {[%emt 0:01:10]} Bc6 $1 {[%emt 0:01:03] ( -> ...Ke2+)} 38. Kg1 {[%emt 0:00:29]} Rg2+ {[%emt 0:00:21]} 39. Kf1 {[%emt 0:00:05]} Bb5+ {[%emt 0:00:05]} 40. Ke1 {[%emt 0:00:05]} Re2+ {[%emt 0:00:05]} 41. Kd1 {[%emt 0:00:06]} Ba4+ {[%emt 0:00:13]} 42. Kc1 {[%emt 0:00:06]} Rxe6 {[%emt 0:00:16]} ({Reject} 42... Rc2+ 43. Kb1 $11) 43. Bd2 {[%emt 0:01:56]} Rc6+ {[%emt 0:00:10]} 44. Kb1 {[%emt 0:00:07]} Bc2+ {[%emt 0:01:13]} 45. Kb2 {[%emt 0:00:38]} Be4 {[%emt 0:00:22] Threatens to win with ...Rc2+.} 46. Kb3 {[%emt 0:00:11]} Rd6 {[%emt 0:01:08]} 47. Bc1 {[%emt 0:00:56]} Rd1 {[%emt 0:00:11]} 48. Bg5 {[%emt 0:00:07]} Rg1 {[%emt 0:00:54]} 49. Be7 {[%emt 0:00:20]} f4 {[%emt 0:00:25]} 50. Bd6 $2 {[%emt 0:00:17][%mdl 8192]} Bxh7 {[%emt 0:00:05] Weighted Error Value: White=0.30/Black=0.09 (flawless)} 0-1

[Event "26th Hit Open-A 2022"]
[Site "Nova Gorica"]
[Date "2022.09.19"]
[Round "6.24"]
[White "Pirs, Matjaz"]
[Black "Stevanic, David"]
[Result "0-1"]
[ECO "C55"]
[WhiteElo "2203"]
[BlackElo "2261"]
[Annotator "TA"]
[PlyCount "84"]
[EventDate "2022.09.16"]
[EventType "swiss"]
[EventCountry "SLO"]
[SourceTitle "playchess.com"]
[Source "ChessBase"]
[SourceQuality "1"]
[TimeControl "5400+30"]

{[%evp 17,84,0,11,0,0,0,0,-28,0,-7,0,0,0,0,47,9,15,18,23,7,57,25,56,61,85,60,50,13,32,27,27,13,35,17,19,18,37,2,34,0,0,-9,-9,-9,-14,-26,-25,-51,-51,-43,-47,-55,-17,-121,-121,-122,-122,-179,-181,-192,-190,-186,-179,-591,-567,-564,-551,-629,-611]} 1. e4 {[%emt 0:00:05]} e5 {[%emt 0:02:36]} 2. Nf3 {[%emt 0:00:29]} Nc6 {[%emt 0:00:14]} 3. Bc4 {[%emt 0:00:37]} Nf6 {[%emt 0:00:12]} 4. d3 {[%emt 0:00:17]} Be7 {[%emt 0:00:12]} 5. Nc3 {[%emt 0:00:17]} d6 {[%emt 0:00:44]} 6. h3 {[%emt 0:01:48]} Na5 {[%emt 0:02:20]} 7. Bb3 {[%emt 0:00:47]} Nxb3 {[%emt 0:00:22]} 8. axb3 {[%emt 0:00:06]} O-O {[%emt 0:00:46]} 9. O-O {[%emt 0:01:20]} Re8 {[%emt 0:03:40]} 10. Be3 {[%emt 0:08:44] C55: Two Knights: 4 d3, 4 d4 exd4 5 e5 and Max Lange Attack.} b6 {[%emt 0:03:46]} 11. d4 {[%emt 0:01:32]} Bb7 {[%emt 0:04:38] [#]} 12. Qd3 $146 {[%emt 0:14:23] The position is equal.} ({Predecessor:} 12. dxe5 Nxe4 13. exd6 Nxc3 14. bxc3 Bxd6 15. Nd4 Qf6 16. Qg4 Qe5 17. Rfe1 Qh2+ 18. Kf1 h5 19. Qxh5 Rxe3 20. Rxe3 Qh1+ 21. Ke2 Qxa1 22. Nf3 Qa5 23. Ng5 Qf5 24. Qh4 {0-1 (24) Ciloglu,D (1770)-Sanal,V (2210) Konya 2011}) 12... exd4 {[%emt 0:07:15]} (12... a5 $5 {[%cal Rb7a6]}) 13. Nxd4 {[%emt 0:06:35]} Nd7 {[%emt 0:05:09]} (13... d5 {keeps more tension.} 14. e5 Nd7 15. e6 Ne5) 14. f3 {[%emt 0:05:36]} g6 {[%emt 0:08:10]} 15. Qd2 {[%emt 0:07:54]} Bh4 {[%emt 0:05:40]} (15... Nf6 $11 {is more appropriate.}) 16. Nde2 {[%emt 0:07:19]} a5 {[%emt 0:08:35]} 17. Rfd1 {[%emt 0:00:32]} Qe7 {[%emt 0:07:28]} 18. Nf4 {[%emt 0:05:03]} Rac8 {[%emt 0:08:22]} (18... Qd8 $11) 19. Nfd5 {[%emt 0:02:37]} (19. b4 $5) 19... Bxd5 {[%emt 0:01:19]} 20. Nxd5 {[%emt 0:00:30]} Qe6 {[%emt 0:00:57]} 21. Qc3 {[%emt 0:21:28]} Bd8 {[%emt 0:02:35]} 22. Bd4 {[%emt 0:02:48][%cal Be3d4,Bd4c3,Bc3d2][%mdl 32]} c6 {[%emt 0:08:36]} 23. Nf4 {[%emt 0:00:25]} (23. Bh8 $2 f6 24. Nf4 Qf7 25. Rxd6 Bc7 26. Rxd7 (26. Rxc6 $2 Be5 $19) 26... Qxd7 27. Nxg6 hxg6 $19) 23... Qe7 {[%emt 0:00:23]} 24. Re1 {[%emt 0:01:42]} ({Not} 24. Bh8 $2 f6 25. Bxf6 (25. Nd5 $2 Qf8 $19) 25... Nxf6 $19) 24... Ne5 {[%emt 0:01:28]} 25. Nd3 {[%emt 0:03:57]} Nxd3 {[%emt 0:01:13]} 26. Qxd3 {[%emt 0:00:09]} Bc7 {[%emt 0:01:39]} 27. Bc3 {[%emt 0:00:05]} Qg5 {[%emt 0:05:54]} (27... d5 $5) 28. Bd2 {[%emt 0:00:48]} Qg3 {[%emt 0:00:39][%cal Od6d5]} 29. f4 {[%emt 0:01:39]} Qxd3 {[%emt 0:00:17]} 30. cxd3 {[%emt 0:00:03]} d5 {[%emt 0:02:28]} 31. Rac1 {[%emt 0:01:21]} c5 {[%emt 0:00:45]} 32. Kf2 {[%emt 0:00:17]} ({Much weaker is} 32. exd5 Red8 33. g3 Rxd5 $17) 32... dxe4 {[%emt 0:01:20]} 33. Rxe4 {[%emt 0:01:18]} Red8 {[%emt 0:00:54]} 34. Ke2 {[%emt 0:01:22]} Bd6 {[%emt 0:03:18]} 35. Bc3 {[%emt 0:00:10]} (35. Re1 $11 {keeps the balance.}) 35... f5 $17 {[%emt 0:00:26]} 36. Re6 {[%emt 0:00:08]} Bxf4 {[%emt 0:00:30]} 37. Rf1 {[%emt 0:00:08]} (37. Rd1 $17 {was necessary.}) 37... Re8 $19 {[%emt 0:00:37]} 38. Rxe8+ {[%emt 0:00:04]} Rxe8+ {[%emt 0:00:01]} 39. Kf3 {[%emt 0:00:06]} g5 {[%emt 0:01:27]} 40. g3 $2 {[%emt 0:00:10] [#]} (40. Rd1 {is more resistant.}) 40... Re3+ {[%emt 0:00:32] Black is clearly winning.} 41. Kf2 {[%emt 0:00:03]} Rxg3 {[%emt 0:00:04]} 42. Re1 {[%emt 0:00:06]} Kf7 {[%emt 0:00:45] Weighted Error Value: White=0.37/Black=0.11 (very precise)} 0-1

[Event "26th Hit Open-A 2022"]
[Site "Nova Gorica"]
[Date "2022.09.19"]
[Round "6.25"]
[White "Vah, Denis"]
[Black "Zamar Kodelja, Jurij"]
[Result "0-1"]
[ECO "E90"]
[WhiteElo "1988"]
[BlackElo "2241"]
[Annotator "RC"]
[PlyCount "58"]
[EventDate "2022.09.16"]
[EventType "swiss"]
[EventCountry "SLO"]
[SourceTitle "playchess.com"]
[Source "ChessBase"]
[SourceQuality "1"]
[TimeControl "5400+30"]

1. d4 {[%emt 0:00:01]} Nf6 {[%emt 0:00:08]} 2. c4 {[%emt 0:00:04]} g6 {[%emt 0:00:31]} 3. Nc3 {[%emt 0:00:05]} Bg7 {[%emt 0:00:05]} 4. e4 {[%emt 0:00:03]} d6 {[%emt 0:00:09]} 5. h3 {[%emt 0:00:02]} O-O {[%emt 0:01:27]} 6. Nf3 {[%emt 0:00:16]} e5 {[%emt 0:00:47]} 7. d5 {[%emt 0:00:05]} a5 {[%emt 0:01:40]} 8. g4 {[%emt 0:00:22]} Na6 {[%emt 0:01:47]} 9. Be3 {[%emt 0:00:07]} Nd7 {[%emt 0:01:25]} 10. Rg1 {[%emt 0:01:34]} Ndc5 {[%emt 0:03:35]} 11. h4 {[%emt 0:03:57]} c6 {[%emt 0:08:35]} 12. h5 {[%emt 0:06:12]} cxd5 {[%emt 0:02:52]} 13. cxd5 {[%emt 0:02:00]} Bd7 {[%emt 0:02:06]} 14. hxg6 {[%emt 0:06:14]} fxg6 {[%emt 0:01:48]} 15. Ng5 {[%emt 0:18:47]} h6 {[%emt 0:05:53]} 16. Ne6 {[%emt 0:02:09]} Nxe6 {[%emt 0:00:54]} 17. dxe6 {[%emt 0:00:11]} Bxe6 {[%emt 0:00:04]} 18. Qd2 {[%emt 0:01:12]} Nb4 {[%emt 0:00:08]} 19. Rd1 {[%emt 0:05:44]} Qf6 {[%emt 0:01:49]} 20. Bb5 {[%emt 0:23:27]} Qh4 {[%emt 0:03:06]} 21. a3 {[%emt 0:05:21]} Nc6 {[%emt 0:00:11]} 22. Qxd6 {[%emt 0:00:07]} Bb3 {[%emt 0:02:10]} 23. Nd5 {[%emt 0:01:03]} Kh7 {[%emt 0:02:02]} 24. Bxc6 {[%emt 0:02:28]} bxc6 {[%emt 0:00:17]} 25. Qxc6 {[%emt 0:01:41]} Bxd1 {[%emt 0:01:58]} 26. Kxd1 {[%emt 0:00:10]} Qh2 {[%emt 0:00:51]} 27. Re1 {[%emt 0:01:44]} Qg2 {[%emt 0:00:12]} 28. Qd7 {[%emt 0:02:14]} Rad8 {[%emt 0:01:18]} 29. Qa4 {[%emt 0:00:12]} Qxg4+ {[%emt 0:00:09]} 0-1

[Event "26th Hit Open-A 2022"]
[Site "Nova Gorica"]
[Date "2022.09.19"]
[Round "6.27"]
[White "Alexandrova, Angelina"]
[Black "Zubova, Mariya"]
[Result "0-1"]
[ECO "D78"]
[WhiteElo "1842"]
[BlackElo "2214"]
[Annotator "RC"]
[PlyCount "95"]
[EventDate "2022.09.16"]
[EventType "swiss"]
[EventCountry "SLO"]
[SourceTitle "playchess.com"]
[Source "ChessBase"]
[SourceQuality "1"]
[TimeControl "5400+30"]

1. d4 {[%emt 0:00:03]} Nf6 {[%emt 0:00:22]} 2. Nf3 {[%emt 0:00:12]} g6 {[%emt 0:00:13]} 3. g3 {[%emt 0:00:32]} Bg7 {[%emt 0:00:08]} 4. Bg2 {[%emt 0:00:09]} O-O {[%emt 0:00:15]} 5. O-O {[%emt 0:00:16]} d5 {[%emt 0:00:19]} 6. c4 {[%emt 0:00:19]} c6 {[%emt 0:00:20]} 7. Nc3 {[%emt 0:00:36]} Ne4 {[%emt 0:04:18]} 8. Nxe4 {[%emt 0:06:56]} dxe4 {[%emt 0:00:06]} 9. Ng5 {[%emt 0:00:33]} Qxd4 {[%emt 0:05:04]} 10. Qxd4 {[%emt 0:00:33]} Bxd4 {[%emt 0:00:05]} 11. Rd1 {[%emt 0:01:30]} Bg7 {[%emt 0:01:55]} 12. Nxe4 {[%emt 0:00:20]} Na6 {[%emt 0:00:41]} 13. a3 {[%emt 0:01:29]} Be6 {[%emt 0:01:24]} 14. Bg5 {[%emt 0:05:03]} Rfe8 {[%emt 0:09:09]} 15. Rac1 {[%emt 0:08:44]} f5 {[%emt 0:04:36]} 16. Nd2 {[%emt 0:02:25]} Rad8 {[%emt 0:07:18]} 17. Rc2 {[%emt 0:03:37]} Nc5 18. Rb1 Bf7 19. b3 Ne6 20. Nf3 Rd7 21. Rd2 {[%emt 0:02:00]} Rxd2 {[%emt 0:04:11]} 22. Bxd2 {[%emt 0:11:30]} Rd8 {[%emt 0:13:07]} 23. Be3 {[%emt 0:02:18]} c5 24. Ng5 Nxg5 25. Bxg5 Rd7 26. Kf1 b6 27. e4 Bd4 28. Re1 Bc3 29. Rb1 Kg7 30. Ke2 {[%emt 0:03:13]} e5 {[%emt 0:10:42]} 31. Be3 {[%emt 0:13:02]} Be6 {[%emt 0:16:09]} 32. h4 {[%emt 0:01:17]} Bd4 {[%emt 0:01:05]} 33. a4 {[%emt 0:09:50]} h6 {[%emt 0:02:13]} 34. Rg1 {[%emt 0:08:41]} a6 {[%emt 0:01:46]} 35. Bf3 {[%emt 0:01:47]} Rf7 {[%emt 0:02:25]} 36. g4 {[%emt 0:07:25]} Bxe3 {[%emt 0:04:37]} 37. Kxe3 {[%emt 0:00:47]} f4+ {[%emt 0:00:08]} 38. Kd3 {[%emt 0:00:24]} Rd7+ {[%emt 0:01:12]} 39. Kc3 {[%emt 0:00:30]} Kf6 {[%emt 0:00:30]} 40. Rd1 {[%emt 0:00:30]} Rd4 {[%emt 0:00:30]} 41. Ra1 {[%emt 0:00:30]} Bd7 {[%emt 0:00:30]} 42. Ra2 {[%emt 0:00:30]} Ke7 {[%emt 0:00:30]} 43. Rd2 {[%emt 0:00:30]} Bc6 {[%emt 0:00:30]} 44. Rxd4 {[%emt 0:00:30]} cxd4+ {[%emt 0:00:30]} 45. Kd3 {[%emt 0:00:30]} Kd6 {[%emt 0:00:30]} 46. Bd1 {[%emt 0:00:30]} Kc5 {[%emt 0:00:30]} 47. f3 {[%emt 0:00:30]} Kb4 {[%emt 0:00:30]} 48. Kc2 {[%emt 0:00:30]} 0-1

[Event "26th Hit Open-A 2022"]
[Site "Nova Gorica"]
[Date "2022.09.19"]
[Round "6.28"]
[White "Bauer, Thomas"]
[Black "Hercog, Nusa"]
[Result "0-1"]
[ECO "B11"]
[WhiteElo "2200"]
[BlackElo "2019"]
[Annotator "RC"]
[PlyCount "106"]
[EventDate "2022.09.16"]
[EventType "swiss"]
[EventCountry "SLO"]
[SourceTitle "playchess.com"]
[Source "ChessBase"]
[SourceQuality "1"]
[TimeControl "5400+30"]

1. e4 {[%emt 0:00:03]} c6 {[%emt 0:00:11]} 2. Nf3 {[%emt 0:00:08]} d5 {[%emt 0:00:11]} 3. Nc3 {[%emt 0:00:04]} Bg4 {[%emt 0:00:36]} 4. h3 {[%emt 0:01:24]} Bxf3 {[%emt 0:00:27]} 5. Qxf3 {[%emt 0:01:11]} e6 {[%emt 0:00:18]} 6. g3 {[%emt 0:00:07]} Nf6 {[%emt 0:01:11]} 7. Bg2 {[%emt 0:01:10]} Bc5 {[%emt 0:01:43]} 8. O-O {[%emt 0:00:04]} O-O {[%emt 0:05:53]} 9. a4 {[%emt 0:00:02]} Nbd7 {[%emt 0:01:08]} 10. d3 {[%emt 0:02:08]} Re8 {[%emt 0:06:03]} 11. Qe2 {[%emt 0:02:32]} Qc7 {[%emt 0:01:26]} 12. Kh1 {[%emt 0:00:02]} Bd4 {[%emt 0:04:56]} 13. Nd1 {[%emt 0:05:58]} dxe4 {[%emt 0:03:27]} 14. dxe4 {[%emt 0:00:57]} e5 {[%emt 0:06:22]} 15. Qc4 {[%emt 0:11:49]} a5 {[%emt 0:03:19]} 16. Ra3 {[%emt 0:08:44]} Rad8 {[%emt 0:09:46]} 17. Bg5 {[%emt 0:07:11]} h6 {[%emt 0:02:17]} 18. Bc1 {[%emt 0:05:18]} Nf8 {[%emt 0:05:19]} 19. Rb3 {[%emt 0:09:06]} Ne6 {[%emt 0:02:20]} 20. c3 {[%emt 0:02:39]} Ba7 {[%emt 0:00:57]} 21. Be3 {[%emt 0:04:18]} Bxe3 {[%emt 0:00:37]} 22. Nxe3 {[%emt 0:00:02]} Rd2 {[%emt 0:02:15]} 23. h4 {[%emt 0:07:20]} b6 {[%emt 0:12:50]} 24. Ra3 {[%emt 0:06:37]} Rxb2 {[%emt 0:08:09]} 25. Rb3 {[%emt 0:00:08]} Rd2 {[%emt 0:02:26]} 26. Rbb1 {[%emt 0:01:10]} Nc5 {[%emt 0:01:12]} 27. Kg1 {[%emt 0:01:23]} Red8 {[%emt 0:01:18]} 28. Bf3 {[%emt 0:02:49]} Ne8 {[%emt 0:01:29]} 29. Nf5 {[%emt 0:06:44]} Nd6 {[%emt 0:09:03]} 30. Nxd6 {[%emt 0:01:07]} R8xd6 {[%emt 0:00:13]} 31. Rfe1 {[%emt 0:00:04]} Qd8 {[%emt 0:01:57]} 32. Re3 {[%emt 0:00:01]} R6d3 {[%emt 0:01:30]} 33. Bh5 {[%emt 0:01:09]} Qf6 {[%emt 0:02:57]} 34. Re2 {[%emt 0:01:21]} Rd1+ {[%emt 0:00:23]} 35. Re1 {[%emt 0:00:59]} Rxe1+ {[%emt 0:01:15]} 36. Rxe1 {[%emt 0:00:01]} Rd2 {[%emt 0:00:14]} 37. f4 {[%emt 0:02:12]} g6 {[%emt 0:00:58]} 38. Bg4 {[%emt 0:02:13]} Qd6 {[%emt 0:01:19]} 39. Re3 {[%emt 0:01:53]} Rb2 {[%emt 0:01:08]} 40. fxe5 {[%emt 0:01:09]} Qd2 {[%emt 0:00:21]} 41. Re2 {[%emt 0:00:01]} Rb1+ {[%emt 0:00:27]} 42. Kg2 {[%emt 0:03:08]} Qc1 {[%emt 0:00:13]} 43. Kf3 {[%emt 0:00:20]} Qf1+ {[%emt 0:00:43]} 44. Ke3 {[%emt 0:00:08]} Rd1 {[%emt 0:00:51]} 45. e6 {[%emt 0:00:22]} Qg1+ {[%emt 0:00:48]} 46. Rf2 {[%emt 0:01:15]} Qxg3+ {[%emt 0:00:22]} 47. Rf3 {[%emt 0:00:12]} Qe1+ {[%emt 0:00:35]} 48. Kf4 {[%emt 0:00:19]} Qd2+ {[%emt 0:00:29]} 49. Re3 {[%emt 0:00:23]} Qh2+ {[%emt 0:00:31]} 50. Kf3 {[%emt 0:00:52]} Qh1+ {[%emt 0:00:28]} 51. Kf4 {[%emt 0:02:45]} Qh2+ {[%emt 0:00:17]} 52. Rg3 {[%emt 0:00:46]} Nd3+ {[%emt 0:00:30]} 53. Kf3 {[%emt 0:00:42]} Qf2# {[%emt 0:00:16]} 0-1